bitfinex/quotes_SOLUSD_20250815
["timestamp","ask_amount","ask_price","bid_price","bid_amount"]
[1755253738824,0.06,195.85,195.84,0.72]
[1755253739028,0.06,195.85,195.84,8.93046662]
[1755253739921,0.06,195.85,195.84,45.11046662]
[1755253740425,0.06,195.85,195.84,8.93046662]
[1755253740629,0.06,195.85,195.84,45.11046662]
[1755253741313,0.06,195.85,195.84,36.18]
[1755253741641,0.06,195.85,195.84,44.39046662]
[1755253742002,0.06,195.85,195.84,8.21046662]
[1755253742202,0.06,195.85,195.84,45.05046662]
[1755253742811,0.06,195.85,195.84,8.87046662]
[1755253743008,0.06,195.85,195.84,45.05046662]
[1755253743227,0.06,195.85,195.84,50.15667577]
[1755253743725,0.06,195.85,195.84,13.97667577]
[1755253743941,0.06,195.85,195.84,50.15667577]
[1755253744434,0.06,195.85,195.84,45.05046662]
[1755253744929,0.06,195.85,195.84,45.03046662]
[1755253745129,0.06,195.85,195.84,50.13667577]
[1755253746534,0.06,195.85,195.84,44.37046662]
[1755253746926,0.06,195.85,195.84,36.16]
[1755253747232,0.06,195.85,195.84,44.37046662]
[1755253747424,0.06,195.85,195.84,45.03046662]
[1755253747825,0.06,195.85,195.84,44.37046662]
[1755253748932,0.06,195.85,195.84,45.03046662]
[1755253750239,0.06,195.85,195.84,44.37046662]
[1755253752488,0.06,195.85,195.84,36.16]
[1755253752653,0.78,195.85,195.84,44.37046662]
[1755253752849,5.10620915,195.84,195.82,8.24046662]
[1755253753054,0.72,195.83,195.82,0.03]
[1755253753356,0.78,195.85,195.82,44.40046662]
[1755253753550,0.78,195.85,195.83,8.21046662]
[1755253753749,0.78,195.85,195.84,36.16]
[1755253754080,5.88594842,195.85,195.84,36.16]
[1755253755182,9.32160363,195.85,195.82,0.03]
[1755253755359,8.60160363,195.85,195.82,36.19]
[1755253755559,0.72,195.84,195.82,36.19]
[1755253755760,0.72,195.83,195.82,36.19]
[1755253756274,4.15565521,195.83,195.82,36.19]
[1755253757283,9.2621251,195.83,195.82,36.19]
[1755253757486,9.2621251,195.83,195.82,0.03]
[1755253759374,32.72096886,195.83,195.82,0.03]
[1755253759575,15.24837714,195.82,195.79,0.03]
[1755253759754,8.21046662,195.8,195.79,0.03]
[1755253759953,8.35262819,195.8,195.79,0.03]
[1755253760158,9.07262819,195.8,195.79,0.03]
[1755253760388,12.5082834,195.8,195.79,0.03]
[1755253761272,17.61553569,195.8,195.79,0.03]
[1755253761786,21.89170785,195.8,195.79,0.03]
[1755253763991,8.35262819,195.79,195.78,0.03]
[1755253764288,13.53907966,195.8,195.78,0.03]
[1755253764461,3.43565521,195.79,195.78,0.03]
[1755253765290,8.54316836,195.79,195.78,0.03]
[1755253765779,3.43565521,195.79,195.78,8.24046662]
[1755253766086,3.43565521,195.79,195.78,8.90046662]
[1755253767575,3.43565521,195.79,195.78,26.69]
[1755253767888,3.43565521,195.79,195.78,34.90046662]
[1755253768892,5.10646989,195.83,195.78,34.90046662]
[1755253769075,5.10646989,195.83,195.81,8.21046662]
[1755253769388,5.10646989,195.83,195.79,0.66]
[1755253769389,5.10627657,195.84,195.82,8.21046662]
[1755253769574,5.10627657,195.84,195.83,8.21046662]
[1755253770493,0.06,195.85,195.83,8.21046662]
[1755253770691,0.06,195.85,195.82,8.21046662]
[1755253770892,3.42630193,195.84,195.82,8.21046662]
[1755253771395,3.42630193,195.84,195.83,8.21046662]
[1755253771585,8.53251108,195.84,195.83,8.21046662]
[1755253772777,3.42630193,195.84,195.83,8.90046662]
[1755253773892,8.53251108,195.84,195.78,31.13774944]
[1755253774083,8.53251108,195.84,195.83,8.21046662]
[1755253774580,3.42630193,195.84,195.83,8.21046662]
[1755253775196,8.53251108,195.84,195.83,8.21046662]
[1755253777606,8.59251108,195.84,195.83,8.21046662]
[1755253778994,3.48630193,195.84,195.79,31.13751063]
[1755253779176,3.48630193,195.84,195.83,8.21046662]
[1755253779379,0.06,195.84,195.83,8.90046662]
[1755253782113,0.74,195.84,195.81,8.21046662]
[1755253782272,0.06,195.84,195.81,8.21046662]
[1755253782480,0.68,195.83,195.81,8.21046662]
[1755253782677,5.10673067,195.82,195.81,8.21046662]
[1755253784282,5.16644392,195.84,195.81,8.21046662]
[1755253784493,5.16644392,195.84,195.82,8.21046662]
[1755253784694,5.16644392,195.84,195.83,8.90046662]
[1755253784695,0.06,195.84,195.83,8.90046662]
[1755253785285,3.48816354,195.84,195.83,8.90046662]
[1755253786300,0.06,195.84,195.83,8.90046662]
[1755253787989,0.06,195.84,195.83,8.21046662]
[1755253788694,0.06,195.84,195.82,8.21046662]
[1755253788991,0.74,195.84,195.82,8.21046662]
[1755253789190,0.06,195.84,195.83,8.21046662]
[1755253789590,3.48986719,195.84,195.83,8.21046662]
[1755253790495,8.59607634,195.84,195.83,8.21046662]
[1755253791796,9.27607634,195.84,195.81,8.21046662]
[1755253791998,9.27607634,195.84,195.82,8.21046662]
[1755253792174,8.59607634,195.84,195.83,8.21046662]
[1755253792790,3.48986719,195.84,195.83,8.90046662]
[1755253794503,8.59607634,195.84,195.83,8.21046662]
[1755253796993,9.27607634,195.84,195.81,8.21046662]
[1755253797989,8.59607634,195.84,195.81,8.21046662]
[1755253798304,8.59607634,195.84,195.82,8.21046662]
[1755253798504,3.42986719,195.83,195.82,8.21046662]
[1755253800117,8.53633708,195.83,195.82,8.21046662]
[1755253801515,3.42986719,195.83,195.82,8.21046662]
[1755253802115,8.53633708,195.83,195.82,8.21046662]
[1755253803427,9.23633708,195.83,195.79,0.03]
[1755253803593,0.7,195.82,195.79,0.03]
[1755253803793,8.21046662,195.81,195.79,0.03]
[1755253803988,8.21046662,195.8,195.79,0.03]
[1755253804184,8.91046662,195.8,195.79,0.03]
[1755253804426,8.91046662,195.8,195.75,0.03]
[1755253804427,0.14216157,195.78,195.75,0.03]
[1755253804719,0.14216157,195.75,195.73,0.03]
[1755253804906,23.31668219,195.76,195.73,1e-08]
[1755253804907,24.15884376,195.74,195.73,1e-08]
[1755253805516,29.26766157,195.74,195.73,1e-08]
[1755253806024,0.14216157,195.73,195.67,0.66]
[1755253806201,36.12,195.73,195.69,8.24046662]
[1755253806399,36.12,195.73,195.7,0.66]
[1755253806598,3.42986719,195.72,195.7,0.66]
[1755253807910,3.42986719,195.71,195.69,5.14007436]
[1755253808122,3.42986719,195.71,195.7,8.21046662]
[1755253808420,3.42986719,195.71,195.7,8.87046662]
[1755253809027,3.42986719,195.71,195.7,8.21046662]
[1755253809406,3.42986719,195.71,195.7,8.87046662]
[1755253809911,3.42986719,195.71,195.7,8.21046662]
[1755253810103,9.23946813,195.71,195.69,0.03]
[1755253810307,8.53946813,195.71,195.69,0.03]
[1755253810517,8.53946813,195.71,195.69,8.24046662]
[1755253810828,8.53946813,195.71,195.69,0.03]
[1755253811333,5.10903877,195.74,195.7,8.87046662]
[1755253811629,5.10903877,195.74,195.73,8.21046662]
[1755253812333,5.10903877,195.74,195.72,8.21046662]
[1755253812528,5.10903877,195.74,195.71,8.87046662]
[1755253812729,9.23121286,195.74,195.7,8.24046662]
[1755253812911,8.53121286,195.74,195.7,0.03]
[1755253813238,8.91046662,195.73,195.7,0.03]
[1755253813437,5.10933987,195.72,195.7,0.03]
[1755253813604,5.80933987,195.72,195.7,0.03]
[1755253813929,9.23151396,195.72,195.7,0.03]
[1755253814440,0.7,195.71,195.7,0.03]
[1755253814806,9.05262819,195.71,195.7,0.03]
[1755253815008,12.47480228,195.71,195.7,0.03]
[1755253815219,4.26433566,195.71,195.7,0.03]
[1755253815421,8.6739366,195.71,195.7,0.03]
[1755253815619,8.53177503,195.71,195.7,0.03]
[1755253816611,5.10960094,195.71,195.7,0.03]
[1755253816813,5.80960094,195.71,195.7,0.03]
[1755253817508,5.10960094,195.71,195.7,0.03]
[1755253818027,9.23177503,195.71,195.7,0.03]
[1755253818328,0.14216157,195.7,195.69,1e-08]
[1755253818528,24.15884376,195.7,195.67,1e-08]
[1755253818731,0.14216157,195.67,195.64,1e-08]
[1755253818915,15.24837714,195.64,195.6,1e-08]
[1755253819121,8.21046662,195.61,195.6,1e-08]
[1755253819327,8.35262819,195.61,195.6,1e-08]
[1755253819524,14.16484126,195.61,195.6,1e-08]
[1755253820327,55.27105683,195.61,195.6,1e-08]
[1755253820857,29.27105683,195.61,195.6,1e-08]
[1755253821138,0.14216157,195.53,195.47,0.2]
[1755253821306,8.21046662,195.5,195.47,0.2]
[1755253821511,5.11535116,195.49,195.47,0.2]
[1755253822639,5.11508951,195.5,195.47,0.2]
[1755253823721,8.21046662,195.49,195.47,0.2]
[1755253824435,8.21046662,195.48,195.47,0.2]
[1755253824617,13.35549212,195.48,195.47,0.2]
[1755253824818,13.35549212,195.49,195.47,0.2]
[1755253825441,18.47058163,195.5,195.47,0.2]
[1755253825820,5.11508951,195.5,195.47,14.21549212]
[1755253826022,136.18657441,195.54,195.49,13.35549212]
[1755253826225,4.28657441,195.54,195.53,13.35549212]
[1755253826524,4.28657441,195.54,195.5,0.66]
[1755253826525,4.28657441,195.54,195.52,13.35549212]
[1755253827120,3.38658374,195.55,195.52,14.01549212]
[1755253827344,3.38658374,195.55,195.54,13.35549212]
[1755253827514,3.38658374,195.55,195.54,14.01549212]
[1755253827941,4.28657441,195.61,195.54,14.01549212]
[1755253828245,9.39880419,195.61,195.55,0.66]
[1755253828411,9.39880419,195.61,195.56,13.35549212]
[1755253828615,9.39880419,195.61,195.58,13.35549212]
[1755253828925,4.28657441,195.61,195.6,13.35549212]
[1755253829120,3.3839905,195.6,195.52,5.11440461]
[1755253829327,3.3839905,195.6,195.54,26.0]
[1755253829646,3.3839905,195.6,195.57,13.35549212]
[1755253829949,5.11273582,195.59,195.57,13.35549212]
[1755253830130,8.49672632,195.59,195.57,13.35549212]
[1755253830318,3.3839905,195.59,195.58,13.35549212]
[1755253830514,3.3839905,195.59,195.58,14.01549212]
[1755253831240,3.3839905,195.61,195.58,14.01549212]
[1755253831417,8.49620357,195.61,195.59,13.35549212]
[1755253831617,21.85169569,195.61,195.55,0.71]
[1755253831845,5.11273582,195.59,195.53,14.06549212]
[1755253832145,5.11273582,195.59,195.54,13.35549212]
[1755253832342,3.3839905,195.58,195.54,13.35549212]
[1755253832539,3.3839905,195.58,195.55,0.71]
[1755253832843,5.11325867,195.57,195.55,0.71]
[1755253833041,5.11325867,195.57,195.53,13.35549212]
[1755253833249,5.11325867,195.57,195.55,0.71]
[1755253833628,3.3839905,195.56,195.55,0.71]
[1755253833829,17.41948262,195.56,195.49,14.06549212]
[1755253834130,17.41948262,195.56,195.46,14.06549212]
[1755253834131,13.35549212,195.53,195.46,14.06549212]
[1755253834329,13.35549212,195.53,195.46,40.06549212]
[1755253834538,49.51549212,195.54,195.48,14.06549212]
[1755253834731,3.3839905,195.52,195.48,14.06549212]
[1755253834932,5.11482788,195.51,195.48,14.06549212]
[1755253835125,5.11482788,195.51,195.43,36.16]
[1755253835359,5.11482788,195.51,195.46,26.0]
[1755253835533,5.11482788,195.51,195.48,14.06549212]
[1755253835742,3.3839905,195.52,195.5,13.35549212]
[1755253835925,3.3839905,195.52,195.51,14.09549212]
[1755253836348,3.3839905,195.56,195.51,14.09549212]
[1755253836532,3.3839905,195.56,195.51,13.38549212]
[1755253836737,3.3839905,195.56,195.52,0.71]
[1755253837251,5.11273582,195.59,195.55,13.35549212]
[1755253838030,4.28657441,195.6,195.58,13.35549212]
[1755253838229,4.28657441,195.6,195.59,13.35549212]
[1755253838532,4.28657441,195.6,195.58,13.35549212]
[1755253838730,3.38863453,195.6,195.58,13.35549212]
[1755253839127,8.50119058,195.6,195.58,13.35549212]
[1755253839348,8.50119058,195.6,195.57,13.35549212]
[1755253839948,3.38863453,195.59,195.57,13.35549212]
[1755253840156,3.38863453,195.59,195.56,13.35549212]
[1755253840844,3.38863453,195.58,195.56,13.35549212]
[1755253841029,8.50187069,195.58,195.56,13.35549212]
[1755253841957,3.38863453,195.58,195.57,14.06549212]
[1755253842362,4.28657441,195.58,195.57,14.06549212]
[1755253843437,3.39726975,195.58,195.57,14.06549212]
[1755253844346,3.39726975,195.58,195.57,19.17875079]
[1755253845566,0.06,195.6,195.59,26.0]
[1755253845861,0.06,195.6,195.59,55.17170769]
[1755253846733,0.06,195.64,195.59,55.31386926]
[1755253846958,0.06,195.64,195.63,39.35549212]
[1755253847344,0.06,195.64,195.63,40.06549212]
[1755253851163,0.06,195.64,195.63,60.28339812]
[1755253851541,0.06,195.64,195.63,96.48339812]
[1755253852143,0.06,195.64,195.63,91.37170769]
[1755253852366,0.06,195.64,195.63,76.26549212]
[1755253854958,0.06,195.64,195.63,96.48339812]
[1755253855164,0.06,195.66,195.64,15.10621557]
[1755253855352,0.06,195.66,195.65,33.57287559]
[1755253855551,0.06,195.66,195.65,34.28287559]
[1755253856564,0.06,195.66,195.65,70.46287559]
[1755253858046,0.06,195.68,195.67,26.0]
[1755253858243,0.06,195.68,195.67,75.53549212]
[1755253860359,4.15399192,195.68,195.63,0.71]
[1755253860558,4.15399192,195.68,195.63,13.35549212]
[1755253860559,0.68,195.67,195.63,13.35549212]
[1755253860758,0.68,195.67,195.63,39.35549212]
[1755253860956,0.7,195.66,195.64,13.35549212]
[1755253861156,0.7,195.66,195.63,39.35549212]
[1755253861361,0.7,195.66,195.65,26.0]
[1755253861575,8.58444645,195.68,195.65,39.35549212]
[1755253861751,3.41399192,195.66,195.65,39.35549212]
[1755253862561,3.41399192,195.66,195.65,40.05549212]
[1755253862750,3.41399192,195.66,195.65,45.16666002]
[1755253862950,0.06,195.68,195.65,40.05549212]
[1755253863149,5.17043648,195.68,195.66,36.18]
[1755253863372,5.17043648,195.68,195.66,13.35549212]
[1755253863373,0.06,195.68,195.66,13.35549212]
[1755253863574,0.06,195.68,195.67,39.35549212]
[1755253863975,0.06,195.68,195.67,81.36613759]
[1755253866269,0.06,195.68,195.67,96.47235316]
[1755253867780,0.06,195.68,195.67,75.55549212]
[1755253868183,0.06,195.68,195.67,96.47235316]
[1755253868360,0.06,195.68,195.67,76.25549212]
[1755253868556,0.06,195.68,195.67,39.35549212]
[1755253868762,0.06,195.68,195.67,75.51549212]
[1755253869980,0.06,195.68,195.67,81.32613759]
[1755253870563,0.06,195.68,195.67,76.21549212]
[1755253870764,0.06,195.68,195.67,75.51549212]
[1755253873470,0.76,195.68,195.67,39.35549212]
[1755253873668,5.8703843,195.68,195.67,39.35549212]
[1755253874078,5.8703843,195.68,195.65,49.49549212]
[1755253874469,5.8703843,195.68,195.66,13.35549212]
[1755253874671,0.7,195.67,195.65,49.49549212]
[1755253874890,0.7,195.66,195.65,36.14]
[1755253875097,0.7,195.66,195.63,13.35549212]
[1755253875098,4.11596125,195.66,195.63,13.35549212]
[1755253875290,4.11596125,195.66,195.65,26.0]
[1755253875884,9.22686792,195.66,195.65,26.0]
[1755253877075,9.22686792,195.66,195.63,62.14]
[1755253877286,0.7,195.65,195.62,0.03]
[1755253877696,0.7,195.64,195.62,0.03]
[1755253878187,34.65962672,195.66,195.62,0.03]
[1755253878394,0.7,195.63,195.62,0.03]
[1755253879392,8.52741909,195.64,195.62,0.03]
[1755253880176,3.41596125,195.63,195.62,0.03]
[1755253884283,8.52765168,195.63,195.62,0.03]
[1755253884793,4.11596125,195.63,195.62,0.03]
[1755253885001,8.52765168,195.63,195.62,0.03]
[1755253885181,9.22765168,195.63,195.62,0.03]
[1755253885878,8.52765168,195.63,195.62,0.03]
[1755253886077,3.41596125,195.63,195.62,0.03]
[1755253886280,8.52765168,195.63,195.62,0.03]
[1755253886587,9.22765168,195.63,195.62,0.03]
[1755253886791,17.46277864,195.63,195.62,0.03]
[1755253887979,3.41596125,195.63,195.62,0.03]
[1755253888179,8.52765168,195.63,195.62,0.03]
[1755253889180,9.22765168,195.63,195.62,0.03]
[1755253889801,17.46277864,195.63,195.62,0.03]
[1755253890200,16.76277864,195.63,195.62,0.03]
[1755253890406,17.11277864,195.63,195.62,0.03]
[1755253890903,16.76277864,195.63,195.62,0.03]
[1755253891283,17.11277864,195.63,195.62,0.03]
[1755253891710,8.87765168,195.63,195.62,0.03]
[1755253891889,17.11277864,195.63,195.62,0.03]
[1755253895003,16.76277864,195.63,195.62,0.03]
[1755253897414,17.45277864,195.63,195.62,0.03]
[1755253899190,53.61277864,195.63,195.62,0.03]
[1755253899910,52.92277864,195.63,195.62,0.03]
[1755253900095,44.68765168,195.63,195.62,0.03]
[1755253900313,16.76277864,195.63,195.62,0.03]
[1755253902513,0.14216157,195.61,195.58,0.03]
[1755253902823,13.34786278,195.59,195.58,0.03]
[1755253903314,29.28623992,195.59,195.58,0.03]
[1755253903488,8.37728853,195.58,195.57,0.03]
[1755253903696,24.1735041,195.58,195.57,1e-08]
[1755253904712,36.98903699,195.58,195.57,1e-08]
[1755253905416,73.14903699,195.58,195.57,1e-08]
[1755253905601,81.38416395,195.58,195.56,1e-08]
[1755253905801,9.06728853,195.57,195.56,1e-08]
[1755253906007,41.10621557,195.56,195.55,0.03]
[1755253906212,50.03134253,195.56,195.55,0.03]
[1755253906699,55.14486267,195.56,195.55,0.03]
[1755253906897,26.0,195.54,195.51,0.03]
[1755253907095,26.0,195.54,195.49,0.03]
[1755253907096,8.37728853,195.52,195.49,0.03]
[1755253907295,36.16,195.53,195.49,0.03]
[1755253907296,8.37728853,195.5,195.49,0.03]
[1755253907514,44.53728853,195.5,195.49,0.03]
[1755253907701,60.3335041,195.5,195.49,0.03]
[1755253908112,68.5686311,195.5,195.49,0.03]
[1755253908531,71.98459235,195.5,195.49,0.03]
[1755253909024,52.92617772,195.5,195.49,0.03]
[1755253909800,16.76617772,195.5,195.49,0.71]
[1755253910109,52.92617772,195.5,195.49,0.03]
[1755253910825,16.76617772,195.5,195.49,0.03]
[1755253911211,49.51021647,195.5,195.49,0.71]
[1755253911535,49.51021647,195.5,195.49,0.03]
[1755253914212,52.92759423,195.5,195.49,0.03]
[1755253914925,44.69246727,195.5,195.49,0.03]
[1755253915141,8.53246727,195.5,195.49,0.03]
[1755253915305,52.94759423,195.5,195.49,0.03]
[1755253916228,53.63759423,195.5,195.49,0.03]
[1755253916626,68.88597137,195.5,195.49,0.03]
[1755253917008,68.88597137,195.5,195.49,1e-08]
[1755253917525,68.19597137,195.5,195.49,1e-08]
[1755253917842,52.94759423,195.5,195.49,1e-08]
[1755253918136,52.94759423,195.5,195.49,0.68000001]
[1755253918636,39.59737776,195.5,195.49,0.68000001]
[1755253918819,3.41737776,195.5,195.49,0.68000001]
[1755253919009,8.53246727,195.5,195.49,0.68000001]
[1755253919210,3.41737776,195.5,195.49,0.68000001]
[1755253921734,3.41737776,195.5,195.49,8.91512697]
[1755253921940,3.41737776,195.5,195.49,0.68000001]
[1755253922437,8.53246727,195.5,195.49,0.68000001]
[1755253922737,8.53246727,195.5,195.49,1e-08]
[1755253923440,3.41737776,195.5,195.49,0.66000001]
[1755253925511,3.41737776,195.5,195.49,8.89512697]
[1755253926210,3.41737776,195.5,195.49,5.77535117]
[1755253926536,3.41737776,195.5,195.49,0.66000001]
[1755253927823,3.41737776,195.5,195.49,14.01047813]
[1755253928736,0.06,195.54,195.52,26.0]
[1755253928935,3.62170375,195.55,195.54,26.0]
[1755253929109,0.06,195.56,195.54,34.89512696]
[1755253929313,0.06,195.56,195.55,0.66]
[1755253929712,0.06,195.56,195.55,29.62650233]
[1755253930129,0.06,195.56,195.55,28.96650233]
[1755253930337,0.06,195.56,195.55,29.62650233]
[1755253931342,0.06,195.58,195.57,41.10621557]
[1755253931643,0.06,195.64,195.63,41.10621557]
[1755253931843,0.06,195.66,195.64,15.10621557]
[1755253932140,0.06,195.66,195.65,49.85245932]
[1755253932552,0.06,195.66,195.65,50.51245932]
[1755253932843,0.06,195.66,195.64,26.0]
[1755253933221,0.76,195.66,195.61,39.32021774]
[1755253933538,0.06,195.66,195.62,13.32021774]
[1755253933738,0.06,195.66,195.62,13.98021774]
[1755253933937,0.06,195.66,195.63,0.66]
[1755253935025,0.06,195.66,195.62,13.32021774]
[1755253935639,14.02021774,195.65,195.61,26.0]
[1755253935832,19.13164689,195.64,195.6,36.16]
[1755253936040,5.11142915,195.64,195.6,36.16]
[1755253936322,5.11142915,195.64,195.6,50.14021774]
[1755253937143,18.43164689,195.64,195.6,36.16]
[1755253937349,14.02021774,195.63,195.6,36.16]
[1755253937542,5.11142915,195.64,195.59,13.32021774]
[1755253937752,5.87116,195.66,195.61,13.98021774]
[1755253938051,5.17116,195.66,195.62,13.98021774]
[1755253938251,0.06,195.66,195.64,13.32021774]
[1755253938727,0.06,195.66,195.63,13.32021774]
[1755253938928,0.06,195.66,195.64,13.32021774]
[1755253939125,0.06,195.66,195.63,13.32021774]
[1755253940033,0.7,195.65,195.6,49.48021774]
[1755253940242,0.7,195.65,195.6,50.14021774]
[1755253940656,0.06,195.66,195.62,13.32021774]
[1755253940828,0.06,195.66,195.63,13.32021774]
[1755253941030,0.06,195.66,195.62,13.32021774]
[1755253942052,13.32021774,195.63,195.58,0.66]
[1755253942260,14.02021774,195.62,195.57,36.18]
[1755253942557,14.02021774,195.62,195.57,50.16021774]
[1755253942952,13.32021774,195.63,195.57,49.50021774]
[1755253943150,13.32021774,195.63,195.58,0.66]
[1755253943850,5.11195174,195.62,195.58,0.66]
[1755253944748,0.06,195.66,195.61,13.32021774]
[1755253945056,0.06,195.66,195.63,13.32021774]
[1755253945358,0.06,195.66,195.62,13.98021774]
[1755253945937,0.06,195.66,195.63,13.98021774]
[1755253946661,0.06,195.66,195.62,13.32021774]
[1755253946950,0.76,195.66,195.62,13.32021774]
[1755253947157,0.76,195.66,195.61,50.16021774]
[1755253947553,0.06,195.66,195.62,13.98021774]
[1755253947756,0.76,195.66,195.62,13.32021774]
[1755253948061,5.1111679,195.65,195.62,13.32021774]
[1755253948630,5.1111679,195.65,195.61,49.50021774]
[1755253948834,0.7,195.64,195.61,36.18]
[1755253949256,5.1111679,195.65,195.61,36.18]
[1755253949649,5.8111679,195.65,195.61,36.18]
[1755253949961,5.81154385,195.64,195.61,36.18]
[1755253950262,5.11154385,195.64,195.61,36.18]
[1755253950760,5.17097343,195.66,195.62,13.98021774]
[1755253950960,5.17097343,195.66,195.63,0.7]
[1755253951259,13.32021774,195.64,195.59,0.7]
[1755253951436,13.99021774,195.63,195.58,62.18]
[1755253951639,13.32021774,195.62,195.58,36.18]
[1755253951944,13.99021774,195.62,195.58,36.18]
[1755253952443,5.11221307,195.61,195.58,36.18]
[1755253952663,5.78221307,195.61,195.58,36.18]
[1755253952833,19.10243081,195.61,195.58,36.18]
[1755253953358,5.78221307,195.61,195.58,36.18]
[1755253953660,13.99021774,195.6,195.57,0.03]
[1755253954040,13.99021774,195.59,195.57,0.03]
[1755253954439,5.11299723,195.58,195.57,0.03]
[1755253954955,12.77889053,195.64,195.57,8.96857221]
[1755253955157,8.23857221,195.63,195.57,8.96857221]
[1755253955461,14.02026264,195.63,195.57,8.96857221]
[1755253955633,8.23857221,195.62,195.57,8.96857221]
[1755253955832,8.23857221,195.62,195.57,0.03]
[1755253956133,0.67,195.61,195.57,0.03]
[1755253956732,5.11246844,195.61,195.57,8.96857221]
[1755253957164,5.11246844,195.61,195.58,0.7]
[1755253957533,5.11246844,195.61,195.57,8.26857221]
[1755253957848,5.11246844,195.61,195.57,0.03]
[1755253958350,5.11246844,195.61,195.57,0.73]
[1755253958760,5.11195174,195.62,195.57,0.73]
[1755253958960,13.35052395,195.62,195.57,0.73]
[1755253959365,14.02052395,195.62,195.57,0.73]
[1755253959563,14.02052395,195.62,195.57,8.96857221]
[1755253959564,5.78195174,195.62,195.57,8.96857221]
[1755253959769,0.67,195.61,195.57,0.03]
[1755253960739,13.35052395,195.62,195.57,0.73]
[1755253960938,14.02052395,195.62,195.57,0.73]
[1755253961145,0.67,195.61,195.57,0.03]
[1755253961860,13.35052395,195.62,195.57,0.03]
[1755253962166,0.67,195.6,195.57,0.03]
[1755253962462,8.23857221,195.59,195.57,0.03]
[1755253962966,5.11299723,195.58,195.57,0.03]
[1755253963479,14.02156944,195.58,195.57,0.03]
[1755253963958,9.20639746,195.58,195.57,0.03]
[1755253964142,17.44496967,195.58,195.57,0.03]
[1755253965034,17.58713124,195.58,195.57,0.03]
[1755253965241,0.14216157,195.57,195.55,0.03]
[1755253965465,8.90857221,195.56,195.55,0.03]
[1755253965645,9.05073378,195.56,195.55,0.03]
[1755253966561,12.47413401,195.56,195.55,0.03]
[1755253966747,48.63413401,195.56,195.55,0.03]
[1755253967565,53.74765415,195.56,195.55,0.03]
[1755253969457,53.07765415,195.56,195.55,0.03]
[1755253969773,53.74765415,195.56,195.55,0.03]
[1755253969967,3.42340023,195.56,195.55,0.03]
[1755253970972,3.42340023,195.56,195.55,0.73]
[1755253971151,3.42340023,195.56,195.55,0.03]
[1755253972581,16.77549258,195.56,195.55,0.03]
[1755253972881,17.44549258,195.56,195.55,0.03]
[1755253974874,9.20692037,195.56,195.55,0.03]
[1755253975072,8.53692037,195.56,195.55,0.03]
[1755253978480,3.42340023,195.56,195.55,0.73]
[1755253978659,3.42340023,195.56,195.55,8.96857221]
[1755253980070,131.9,195.59,195.55,8.96857221]
[1755253980272,36.22,195.62,195.58,8.23857221]
[1755253980458,36.22,195.62,195.59,0.7]
[1755253980658,0.06,195.62,195.58,8.23857221]
[1755253980858,0.77,195.62,195.58,8.23857221]
[1755253981265,5.88203252,195.62,195.57,8.23857221]
[1755253981470,5.88203252,195.62,195.57,8.95857221]
[1755253981868,3.43027218,195.61,195.57,8.95857221]
[1755253982278,3.43027218,195.61,195.58,8.23857221]
[1755253982481,3.43027218,195.61,195.58,8.95857221]
[1755253982988,3.43027218,195.61,195.58,8.23857221]
[1755253983164,5.88203252,195.62,195.58,8.23857221]
[1755253983361,0.71,195.61,195.55,0.03]
[1755253983591,8.23857221,195.58,195.55,0.03]
[1755253984087,0.71,195.57,195.55,0.03]
[1755253984582,0.71,195.56,195.55,0.03]
[1755253984887,45.10857221,195.56,195.55,0.03]
[1755253985255,50.36425392,195.56,195.55,0.03]
[1755253985458,53.79573629,195.56,195.55,0.03]
[1755253987366,45.55716408,195.56,195.55,0.03]
[1755253987587,53.79573629,195.56,195.55,0.03]
[1755253988095,52.94357472,195.56,195.55,0.03]
[1755253988300,39.59148237,195.56,195.55,0.03]
[1755253990477,3.43148237,195.56,195.55,0.03]